Cogmind - Beta 13 @@@ ROGUE MODE // 2024.04.27 @ 12:55:41 Player: Jason Result: Destroyed by as-13594 with Assembled Rifle Performance ------------- Evolutions (0) 0 Regions Visited (3) 600 Robots Destroyed (23) 115 Value Destroyed (543) 543 Prototype IDs (27) 540 Alien Tech Used (0) 0 Bonus (300) 300 TOTAL SCORE: 2098 Bonus ------- Aligned with FarCom 300 Cogmind --------- Core Integrity 0/250 Matter 228/300 Energy 99/100 System Corruption 8% Temperature Cool (0) Movement Core (50) Location -10/Exiles Parts ------- > --- POWER (1) -------- (None) > --- PROPULSION (2) --- (None) > --- UTILITY (2) ------ (None) > --- WEAPON (2) ------- (None) > --- INVENTORY (5) ---- Flying Fortress v7 Grenade Launcher Peak State ------------ > --- POWER ------------ Ion Engine > --- PROPULSION ------- Light Treads Light Treads > --- UTILITY ---------- Large Storage Unit Visual Processing Unit > --- WEAPON ----------- Heavy Assault Rifle Heavy Assault Rifle > --- INVENTORY -------- Light Ion Engine Light Ion Engine Light Nuclear Core Flying Fortress v7 Medium Storage Unit Structural Scanner Visual Processing Unit Sensor Array Signal Interpreter Terrain Scanner Makeshift Shrapnel Gun Grenade Launcher [Rating: 14] Favorites ----------- Power Ion Engine Engine Ion Engine Propulsion Light Treads Treads Light Treads Wheel Wheel Utility Large Storage Unit Storage Large Storage Unit Processor Visual Processing Unit Weapon Heavy Assault Rifle Energy Gun Medium Laser Energy Cannon Beam Cannon Ballistic Gun Heavy Assault Rifle Build | -11 -10 -10 -10 ------- Run | Yrd Mat Min Exi Slots Evolved . | . . . . Power . | . . . . Propulsion . | . . . . Utility . | . . . . Weapon . | . . . . Parts Attached 23 | 6 9 6 2 Power 5 | 1 3 1 . Engine 5 | 1 3 1 . Core . | . . . . Reactor . | . . . . Propulsion 6 | 2 1 3 . Treads 3 | . . 3 . Leg . | . . . . Wheel 3 | 2 1 . . Hover . | . . . . Flight . | . . . . Utility 4 | 1 3 . . Device . | . . . . Storage 3 | 1 2 . . Processor 1 | . 1 . . Hackware . | . . . . Protection . | . . . . Artifact . | . . . . Weapon 8 | 2 2 2 2 Energy Gun 1 | 1 . . . Energy Cannon 2 | . . 1 1 Ballistic Gun 5 | 1 2 1 1 Ballistic Cannon . | . . . . Launcher . | . . . . Special Weapon . | . . . . Impact Weapon . | . . . . Slashing Weapon . | . . . . Piercing Weapon . | . . . . Special Melee Weapon . | . . . . Unidentified Prototypes . | . . . . Parts Lost 6 | . 2 4 . Power 2 | . 1 1 . Propulsion 2 | . 1 1 . Utility . | . . . . Weapon 2 | . . 2 . Highest Loss Streak 2 | . 1 2 . To Critical Strikes . | . . . . Average Slot Usage (%) 91 | . 88 93 100 Engine 13 | . 14 13 14 Treads 10 | . . 17 28 Wheel 10 | . 19 4 . Storage 14 | . 14 14 14 Processor 12 | . 11 14 14 Energy Gun 1 | . 2 . . Energy Cannon 5 | . . 9 10 Ballistic Gun 21 | . 25 18 17 Naked Turns 4 | . . . 4 Heaviest Build 31 | 13 31 31 31 Greatest Support 40 | 26 26 40 40 Greatest Overweight (x) 10 | 2 3 10 . Average Overweight (x) 1 | . 1 1 . Largest Inventory Capacity 15 | 8 15 15 15 Average Capacity 14 | 6 14 15 14 Most Carried 15 | 5 15 15 15 Average Carried 13 | 4 13 14 14 Final Capacity 15 | 8 15 15 5 Final Carried 15 | 5 15 15 5 Class Distribution -------------------- 100% | Mutant Dominant Class ---------------- Mutant | -10/Materials Mutant | -10/Mines Mutant | -10/Exiles Resources | -11 -10 -10 -10 ----------- Run | Yrd Mat Min Exi Matter Collected 702 | 248 297 157 . Remotely . | . . . . Salvage Created 691 | . 422 269 . Parts 53 | . 41 12 . Haulers Intercepted . | . . . . Recyclers Shooed . | . . . . Parts Field Recycled . | . . . . Retrieved Matter . | . . . . Parts Self-Destructed . | . . . . Prevented . | . . . . Kills | -11 -10 -10 -10 ------- Run | Yrd Mat Min Exi Combat Hostiles Destroyed 21 | . 13 8 . Guns 17 | . 13 4 . Cannons 3 | . . 3 . Classes Destroyed 7 | . 5 2 . Worker 2 | . 1 1 . Tunneler 1 | . 1 . . Watcher 2 | . 2 . . Swarmer 7 | . 6 1 . Grunt 9 | . 7 2 . Sentry 2 | . . 2 . Assembled 3 | . . 3 . Best Kill Streak 5 | . 5 4 . Combat Bots Only 5 | . 5 3 . Max Kills in Single Turn 2 | . 2 1 . Gunslinging 1 | . 1 . . Exploded . | . . . . Melee . | . . . . Uniques/NPCs Destroyed . | . . . . Combat | -11 -10 -10 -10 -------- Run | Yrd Mat Min Exi Hostile Shots Fired 115 | . 53 38 24 Missed 29 | . 10 13 6 Damage Taken 1090 | . 484 386 220 Core 254 | . 114 41 99 Absorbed by Shields . | . . . . Regen/Repaired (Parts) 38 | . 38 . . Core Remaining (%) 100 | 100 . . . Volleys Fired 63 | . 40 22 1 Largest 2 | . 2 2 2 Hottest 83 | . 70 83 46 Shots Fired 126 | . 80 42 4 Gun 111 | . 80 28 3 Cannon 15 | . . 14 1 Launcher . | . . . . Special . | . . . . Kinetic 103 | . 72 28 3 Thermal 23 | . 8 14 1 Explosive . | . . . . Electromagnetic . | . . . . Robot Hit Streak 8 | . 6 8 1 Robot Miss Streak 3 | . 3 1 2 Penetration Max . | . . . . Secondary Targets 2 | . 2 . . Max Gunslinging Chain 1 | . 1 . . Shots Hit Robots 71 | . 41 29 1 Core Hits 40 | . 23 16 1 Critical Kills 1 | . . 1 . Critical Parts Destroyed 1 | . . 1 . Critical Strikes 2 | . . 2 . Meltdown 1 | . . 1 . Destroy 1 | . . 1 . Melee Attacks . | . . . . Impact . | . . . . Slashing . | . . . . Piercing . | . . . . Sneak Attacks . | . . . . Combat Hostiles . | . . . . Follow-up Attacks . | . . . . Damage Inflicted 1165 | . 690 460 15 Guns 974 | . 690 269 15 Cannons 191 | . . 191 . Explosions . | . . . . Melee . | . . . . Ramming . | . . . . Kinetic 900 | . 616 269 15 Thermal 265 | . 74 191 . Explosive . | . . . . Electromagnetic . | . . . . Impact . | . . . . Slashing . | . . . . Piercing . | . . . . Highest Corruption 8 | . . 8 8 Average Corruption 7 | . . 7 8 Corruption Purged . | . . . . Corruption Blocked . | . . . . Effects 45 | . . 26 19 Message Errors 9 | . . 9 . Matter Fused 10 | . . 5 5 Heat Flow Errors 6 | . . 1 5 Energy Discharges 8 | . . 6 2 Parts Fused 2 | . . . 2 Data Loss (minor) 5 | . . 3 2 Data Loss (major) 1 | . . . 1 Misfires 4 | . . 2 2 Overload Shots . | . . . . Overflow Damage . | . . . . Projectiles . | . . . . Explosions . | . . . . Melee . | . . . . Knockbacks . | . . . . Impact . | . . . . Kinetic . | . . . . Secondary . | . . . . Self-Inflicted Damage . | . . . . Shots . | . . . . Rammed . | . . . . Targets Rammed . | . . . . Kicked . | . . . . Crushed . | . . . . Highest Temperature 270 | . 165 153 270 Average Temperature 69 | . 55 59 94 Received Heat Transfer 422 | . 183 99 140 Siege Activations . | . . . . Robots Corrupted . | . . . . Combat Hostiles . | . . . . Parts Fried . | . . . . Impact Corruptions . | . . . . Robots Melted 1 | . . 1 . Combat Hostiles 1 | . . 1 . Parts Melted . | . . . . Heat Transferred 629 | . 222 407 . Parts Sabotaged . | . . . . Parts Stolen . | . . . . Parts Stripped . | . . . . Power Chain Reactions . | . . . . Alert | -11 -10 -10 -10 ------- Run | Yrd Mat Min Exi Peak Influence 278 | . 278 120 . Initial 44 | . . 44 . Average 68 | . 103 26 . Maximum Alert Level 1 | . 1 . . Low Security (%) 92 | 100 86 100 . Level 1 7 | . 13 . . Level 2 . | . . . . Level 3 . | . . . . Level 4 . | . . . . Level 5 . | . . . . High Security . | . . . . Max Security . | . . . . Squads Dispatched 2 | . 2 . . Investigation . | . . . . Extermination . | . . . . Reinforcement 2 | . 2 . . Assault . | . . . . Garrison . | . . . . Intercept . | . . . . Searches Triggered . | . . . . Construction Impeded . | . . . . Haulers Reinforced . | . . . . Active Scanning Responses . | . . . . Cargo Convoy Interrupts . | . . . . Stealth | -11 -10 -10 -10 --------- Run | Yrd Mat Min Exi Distress Signals 2 | . 1 1 . Communications Jammed . | . . . . Distress Signals . | . . . . Times Spotted 36 | . 21 8 7 Peak Tracking Total 9 | . 5 3 9 Tactical Retreats 1 | . 1 . . Traps | -11 -10 -10 -10 ------- Run | Yrd Mat Min Exi Traps Triggered 1 | . 1 . . Indirectly . | . . . . Trap Hack Attempts . | . . . . Triggered . | . . . . Disarmed . | . . . . Reprogrammed . | . . . . Reused . | . . . . Traps Extracted . | . . . . Installed . | . . . . Triggered . | . . . . Machines | -11 -10 -10 -10 ---------- Run | Yrd Mat Min Exi Machines Disabled 1 | . 1 . . Max in Single Turn 1 | . 1 . . Machines Repaired . | . . . . Machines Dismantled . | . . . . Machines Sabotaged . | . . . . Overloaded Fab Kills . | . . . . Hacking | -11 -10 -10 -10 --------- Run | Yrd Mat Min Exi Machines Accessed 10 | . 9 . 1 Terminals 6 | . 6 . . Fabricators . | . . . . Repair Stations 1 | . 1 . . Recycling Units 2 | . 2 . . Scanalyzers . | . . . . Garrison Access . | . . . . Total Hacks 23 | . 22 . 1 Successful 13 | . 12 . 1 Failed 10 | . 10 . . Catastrophic 3 | . 3 . . Database Lockouts . | . . . . Manual 2 | . 1 . 1 Terminals 14 | . 14 . . Fabricators . | . . . . Repair Stations 4 | . 4 . . Recycling Units 4 | . 4 . . Scanalyzers . | . . . . Garrison Access . | . . . . Terminal Hacks 7 | . 6 . 1 Prototype ID Bank 2 | . 2 . . Branch Access Points 1 | . 1 . . Alert Level 1 | . 1 . . Locate Traps 2 | . 2 . . Derelict Proto ID Bank 1 | . . . 1 Fabricator Hacks . | . . . . Repair Station Hacks 3 | . 3 . . Scan Component 2 | . 2 . . Repair 1 | . 1 . . Recycling Unit Hacks 3 | . 3 . . Report Inventory 2 | . 2 . . Retrieve Components 1 | . 1 . . Scanalyzer . | . . . . Garrison Access Hacks . | . . . . Unauthorized Hacks . | . . . . Terminals . | . . . . Fabricators . | . . . . Repair Stations . | . . . . Recycling Units . | . . . . Scanalyzers . | . . . . Garrison Access . | . . . . Data Cores Recovered . | . . . . Used . | . . . . Hacking Detections 7 | . 7 . . Full Trace Events 1 | . 1 . . Feedback Events . | . . . . Feedback Blocked . | . . . . Robot Schematics Acquired . | . . . . Robots Built . | . . . . Authchips . | . . . . Time . | . . . . Total Robot Build Rating . | . . . . Part Schematics Acquired . | . . . . Parts Built . | . . . . Authchips . | . . . . Time . | . . . . Total Part Build Rating . | . . . . Parts Repaired 1 | . 1 . . Time 26 | . 26 . . Parts Recycled . | . . . . Recycled Matter . | . . . . Retrieved Matter . | . . . . Retrieved Components 9 | . 9 . . Parts Scanalyzed . | . . . . Part Schematics Acquired . | . . . . Parts Damaged . | . . . . Bothacking | -11 -10 -10 -10 ------------ Run | Yrd Mat Min Exi Used RIF Installer . | . . . . Robots Hacked . | . . . . Non-combat . | . . . . Combat . | . . . . Robot Hacks Applied . | . . . . Relay Couplers Released . | . . . . Fabnet Peak Effective % . | . . . . Robots Rewired . | . . . . Allies Hacked . | . . . . Hacks Repelled . | . . . . Allies | -11 -10 -10 -10 -------- Run | Yrd Mat Min Exi Total Allies . | . . . . Largest Group . | . . . . Highest-Rated Group . | . . . . Highest-Rated Ally . | . . . . Total Orders . | . . . . Ally Attacks . | . . . . Total Damage . | . . . . Kills . | . . . . Allies Corrupted . | . . . . Allies Melted . | . . . . Intel | -11 -10 -10 -10 ------- Run | Yrd Mat Min Exi Robot Analysis Total . | . . . . Derelict Logs Recovered 2 | . . 2 . Drone Launches . | . . . . Drone Recoveries . | . . . . Exploration | -11 -10 -10 -10 ------------- Run | Yrd Mat Min Exi Turns Passed 3168 | 65 1485 1110 508 Spaces Moved 2195 | 63 1142 673 317 Core 34 | 19 . 6 9 Treads 701 | . . 393 308 Legs . | . . . . Wheels 1460 | 44 1142 274 . Hover . | . . . . Flight . | . . . . Fastest Speed 50 | 50 90 125 50 Average Speed 126 | 82 107 149 156 Slowest Speed 550 | 150 125 550 160 Overloaded Moves . | . . . . Propulsion Burnouts . | . . . . Robots Hopped . | . . . . Cave-ins Triggered . | . . . . Exploration Rate (%) 56 | 3 96 82 45 Regions Visited 3 Branch Regions 2 Pre-discovered Areas 1 | . . 1 . Known Exits Taken 1 | . 1 . . Unknown Exits Taken 2 | 1 . 1 . Scrap Searched 1 | . . 1 . Spaces Dug . | . . . . Terrain Destroyed . | . . . . Melee . | . . . . Projectile . | . . . . AOE . | . . . . Terrain Rammed . | . . . . Walls Destroyed . | . . . . Machines Disabled . | . . . . Actions | -11 -10 -10 -10 --------- Run | Yrd Mat Min Exi Total 2467 | 73 1327 738 329 Wait 145 | . 111 34 . Move 2192 | 62 1141 672 317 Hop . | . . . . Pick Up 24 | 5 14 4 1 Fast Attach 12 | 6 5 . 1 Attach 7 | . 1 5 1 Detach 4 | . 3 . 1 Swap 4 | . 3 1 . Drop 16 | . 9 . 7 Fire 63 | . 40 22 1 Melee . | . . . . Ram . | . . . . Kick . | . . . . Crush . | . . . . Escape Stasis . | . . . . Rewire . | . . . . Trap . | . . . . Miscellaneous . | . . . . Route ------- -11/Scrapyard -10/Materials (discovered 4 exits: [*Mat x3] / *Min) -10/Mines (discovered 3 exits: [*Mat] / *Exi / [*Sub]) -10/Exiles (discovered 1 exit: [*Min]) History --------- Turn | Location | Event 7 | -11/Scrapyard | Discovered new exit (range 14) 66 | -11/Scrapyard | Entered Materials 208 | -10/Materials | Discovered new exit (range 15) 306 | -10/Materials | Build established: Mutant 543 | -10/Materials | Discovered new exit (range 12) 732 | -10/Materials | Discovered new exit (range 4) 1049 | -10/Materials | Identified exit to Mines 1149 | -10/Materials | Repaired Wheel 1237 | -10/Materials | Discovered new exit (range 18) 1551 | -10/Materials | Entered Mines 1637 | -10/Mines | Assembled infested the area 1642 | -10/Mines | Assisted by a Guerilla fighting off Assembled 1643 | -10/Mines | Found a hidden stash of uninstalled traps 2009 | -10/Mines | A weapon hastily lodged in a ceiling crevice suddenly fell to the ground 2080 | -10/Mines | Core integrity fell below 50% 2179 | -10/Mines | Discovered new exit (range 17) 2215 | -10/Mines | Discovered new exit (range 6) 2379 | -10/Mines | Learned Materials terminal intel 2649 | -10/Mines | Deemed a non-threat by the Exiles lab entrance 2651 | -10/Mines | Discovered new exit (range 5) 2661 | -10/Mines | Entered Exiles 2715 | -10/Exiles | Discovered new exit (range 15) 2777 | -10/Exiles | Met 8R-AWN 2827 | -10/Exiles | Met EX-HEX 2894 | -10/Exiles | Met EX-BIN 2945 | -10/Exiles | Aligned with FarCom system 2947 | -10/Exiles | Given EX-Vault access code 3014 | -10/Exiles | Opened EX-Vault 3033 | -10/Exiles | Found Flying Fortress v7 3138 | -10/Exiles | Warned to stay clear of 0b10 Research branches 3140 | -10/Exiles | Attacked by the Exiles 3165 | -10/Exiles | Released all parts (7) 3167 | -10/Exiles | Core integrity fell below 20% 3169 | -10/Exiles | Destroyed by as-13594 with Assembled Rifle Last Messages --------------- welcome to try if you really want to. And if we have to leave here due to unforeseen circumstances, don't worry the FarCom system will continue to maintain contact via our distributed network. 03140_ System corrupted: FCS attempts to trigger Hvy. Assault Rifle. 03140_ System corrupted: Hvy. Assault Rifle misfires. 03140_ EXILES: Hostile robot within lab perimeter. Defensive protocols time, folks! 03142_ EX-BIN: "I just want to science!" 03164_ Dropped Lgt. Ion Engine. 03165_ Released Hvy. Assault Rifle. 03165_ Released Ion Engine. 03165_ Released Hvy. Assault Rifle. 03165_ Released Lrg. Storage Unit. 03165_ Released Visual Processing Unit. 03165_ Released Lgt. Treads. 03166_ System corrupted: Matter fused (-6). Map ----- +----------------------------------------------------+ | ??????????????????# #????????????????????????? | | ??????????????????# #########????????????????? | | ??????????????????# ##""""""#????????????????? | | ??????????????????# ## """#????????????????? | | ??????????????????# X""#????????????????? | | ??????????????????# ## """#????????????????? | | ??????????######### ##""""""#????????????????? | | ??????????#""""""## #########????????????????? | | ??????????#"""" ## #????????????????????????? | | ??????????#""X" #????????????????????????? | | ??????????#" #????????????????????????? | | ??????????#" ## #????????????????????????? | | ??????????#""""""## #?#########??????????????? | | ??????????##"###### #?#"""""""#??????????????? | | ?????????? "?????# #?#"""""""#??????????????? | | ?????????""" ?????# #?#"""""""#??????????????? | | ????????#""" ????## ###""!""""#??????????????? | | ?????????""" ????#" [[""""#??????????????? | | ???????????##????#" =!**"""#??????????????? | | ?????????????????#" !!["""#??????????????? | | ?????????????????#" a !!*"""#??????????????? | | ?????????????????#" aaa !"""#??????????????? | | ?????????????????#" """## "???????????? | | ?????????????????## a """"""????????????? | | ??????????????????# """###????????????? | | ??????????????????#" @ "X" """"" ????????????? | | ??????????????????#" """ # "????????????? | | ??????????????????#" aa"""""""""#?"????????????? | | ?????????????????##" ###########??????????????? | | ????????????????##""c #????????????????????????? | | ???????????######"" #????????????????????????? | | ???????????#""""""" ##???????????????????????? | | ??????????"""" " "" ##???###########????????? | | ??????? "" """ " #####"""""""""##???????? | | ???? " " " """ """"##??????? | | ???? "" " #??????? | | ???? " """#??????? | | ???? " "#??????? | | ???? " "##?????? | | ???? ""###???? | | ????? """""" """#???? | | ????? ######""" "#???? | | ?????? ""#?????#####""" ##??? | | ?????? """#??????????##""" ##?# | | ?????? "?"?????????????#"""" ### | | ?????????????????????????#"" | | ?????????????????????????"""" | | ????????????????????????" | | ??????????????????????" # | | ?????????????????????? ## | +----------------------------------------------------+ Best States ------------- Heat Dissipation 25 Energy Generation 10 Energy Capacity 250 Matter Stores 300 Matter Capacity 300 Sight Range 18 Terrain Scan Density 10 Evasion (%) 50 Recoil Reduction 2 Item Schematics ----------------- None Robot Schematics ------------------ None Fabricated ------------ Nothing Alien Tech Used ----------------- None Achievements -------------- None Challenges ------------ None Game ------ Seed NetworkAnalysisEdition Manual? 0 Play Time 00:39:12 Cumulative 35.6 hours Start 2024.04.27 @ 10:12:00 End 2024.04.27 @ 12:55:41 Sessions 1 Manual Loads 0 Difficulty Rogue Special Mode None Game No. 29 Rogue 29 Adventurer 0 Explorer 0 Win Type - Total 0 Types 0/0/0/0/0/0/0/0/0 Lore% 17 Gallery% 26 Achievement% 18 Wizard Run 0 Options --------- Layout 2 ASCII 0 Keyboard 1 Movement Arrows Keybinds 0 Fullscreen 2 Font 24/Smallcaps Map View 50x44 Zoom Use 0% Tactical HUD 1 Map Filters NONE Filters NONE Steam 1 RUN: aff32719-077a-4add-ab2e-1d417bffd339